[Event "Late-Titled-Tuesday-Blitz-May-14-2024"]
[Site "Chess.com"]
[Date "2024.05.14"]
[Round "6"]
[White "VelandiaSaurio"]
[Black "picturesquecheck"]
[Result "1-0"]
[WhiteElo "2632"]
[BlackElo "2465"]
[TimeControl "180+1"]
[EndTime "15:05:12 PDT"]
[Termination "VelandiaSaurio won by resignation"]

1. d4 {[%clk 0:03:00.9]} 1... d5 {[%clk 0:02:58.9]} 2. Nf3 {[%clk 0:03:01.1]}
2... e6 {[%clk 0:02:59.3]} 3. e3 {[%clk 0:03:01.6]} 3... Nf6 {[%clk 0:02:58.7]}
4. Bd3 {[%clk 0:03:01.8]} 4... c5 {[%clk 0:02:58.8]} 5. c3 {[%clk 0:03:02.3]}
5... Be7 {[%clk 0:02:57.2]} 6. Nbd2 {[%clk 0:03:02.7]} 6... O-O {[%clk
0:02:57.5]} 7. O-O {[%clk 0:03:03.2]} 7... b6 {[%clk 0:02:58.1]} 8. Ne5 {[%clk
0:03:02.3]} 8... Bb7 {[%clk 0:02:55.6]} 9. f4 {[%clk 0:03:01.9]} 9... Nc6 {[%clk
0:02:54.6]} 10. Qf3 {[%clk 0:03:01.8]} 10... Rc8 {[%clk 0:02:53.8]} 11. g4
{[%clk 0:03:02]} 11... g6 {[%clk 0:02:53]} 12. h4 {[%clk 0:03:01.2]} 12... Ne4
{[%clk 0:02:43.6]} 13. Nxe4 {[%clk 0:02:59.2]} 13... dxe4 {[%clk 0:02:42.9]} 14.
Bxe4 {[%clk 0:03:00.1]} 14... Nxe5 {[%clk 0:02:39.1]} 15. fxe5 {[%clk 0:03:01]}
15... Bxe4 {[%clk 0:02:38.4]} 16. Qxe4 {[%clk 0:03:01.9]} 16... Bxh4 {[%clk
0:02:37.9]} 17. Bd2 {[%clk 0:03:00.2]} 17... Bg5 {[%clk 0:02:35.2]} 18. Rf3
{[%clk 0:02:51.8]} 18... cxd4 {[%clk 0:02:32.3]} 19. cxd4 {[%clk 0:02:49.3]}
19... Qd5 {[%clk 0:02:32.2]} 20. Qxd5 {[%clk 0:02:49.2]} 20... exd5 {[%clk
0:02:33.1]} 21. Raf1 {[%clk 0:02:44.9]} 21... Be7 {[%clk 0:02:26.7]} 22. R3f2
{[%clk 0:02:38.9]} 22... Rc2 {[%clk 0:02:24.4]} 23. Bc3 {[%clk 0:02:38.2]} 23...
Rxf2 {[%clk 0:02:24.2]} 24. Kxf2 {[%clk 0:02:39.1]} 24... f6 {[%clk 0:02:21.1]}
25. e6 {[%clk 0:02:06.1]} 25... f5 {[%clk 0:02:18]} 26. gxf5 {[%clk 0:02:01.5]}
26... Rxf5+ {[%clk 0:02:17.6]} 27. Ke2 {[%clk 0:02:01.1]} 27... Rxf1 {[%clk
0:02:18.1]} 28. Kxf1 {[%clk 0:02:02]} 28... Kg7 {[%clk 0:02:16.4]} 29. e4 {[%clk
0:02:01]} 29... dxe4 {[%clk 0:02:13.1]} 30. d5+ {[%clk 0:02:01.9]} 30... Kf8
{[%clk 0:02:13.1]} 31. Be5 {[%clk 0:01:59.6]} 31... Bg5 {[%clk 0:01:47.7]} 32.
d6 {[%clk 0:01:57.9]} 32... Ke8 {[%clk 0:01:44.5]} 33. Ke2 {[%clk 0:01:52]}
33... h5 {[%clk 0:01:41.9]} 34. b4 {[%clk 0:01:49.6]} 34... b5 {[%clk
0:01:39.9]} 35. Bd4 {[%clk 0:01:48]} 35... h4 {[%clk 0:01:16.5]} 36. Bxa7 {[%clk
0:01:43.5]} 36... h3 {[%clk 0:01:02.7]} 37. Bc5 {[%clk 0:01:32.3]} 37... Kd8
{[%clk 0:00:37.4]} 38. Bb6+ {[%clk 0:01:28.3]} 38... Kc8 {[%clk 0:00:32.9]} 39.
Kf1 {[%clk 0:01:22]} 39... Kb7 {[%clk 0:00:20.5]} 40. e7 {[%clk 0:01:16.8]}
40... h2 {[%clk 0:00:18.9]} 41. Kg2 {[%clk 0:01:16.4]} 41... Kxb6 {[%clk
0:00:19.5]} 42. e8=Q {[%clk 0:01:16.1]} 42... e3 {[%clk 0:00:20.4]} 1-0

[Event "Late-Titled-Tuesday-Blitz-May-14-2024"]
[Site "Chess.com"]
[Date "2024.05.14"]
[Round "6"]
[White "Rdeux42"]
[Black "sergeikim"]
[Result "0-1"]
[WhiteElo "2391"]
[BlackElo "2611"]
[TimeControl "180+1"]
[EndTime "15:05:14 PDT"]
[Termination "sergeikim won by resignation"]

1. d4 {[%clk 0:02:26.8]} 1... Nf6 {[%clk 0:02:59.3]} 2. Nf3 {[%clk 0:02:19.3]}
2... g6 {[%clk 0:02:59.4]} 3. g3 {[%clk 0:02:19.3]} 3... Bg7 {[%clk 0:02:59.6]}
4. Bg2 {[%clk 0:02:19.3]} 4... O-O {[%clk 0:02:59.8]} 5. O-O {[%clk 0:02:19.6]}
5... d6 {[%clk 0:03:00.1]} 6. a4 {[%clk 0:02:19.8]} 6... a5 {[%clk 0:02:59.5]}
7. Nc3 {[%clk 0:02:19.1]} 7... c6 {[%clk 0:02:59.7]} 8. Re1 {[%clk 0:02:19.1]}
8... Qc7 {[%clk 0:02:59.6]} 9. e4 {[%clk 0:02:19.1]} 9... e5 {[%clk 0:02:59.7]}
10. h3 {[%clk 0:02:17.2]} 10... Re8 {[%clk 0:02:59.8]} 11. Be3 {[%clk
0:02:16.9]} 11... Na6 {[%clk 0:02:59.6]} 12. Qd2 {[%clk 0:02:15.8]} 12... Nb4
{[%clk 0:02:59]} 13. Rad1 {[%clk 0:02:13.8]} 13... Be6 {[%clk 0:02:58.2]} 14.
Bh6 {[%clk 0:02:12.3]} 14... Bc4 {[%clk 0:02:51.6]} 15. b3 {[%clk 0:02:10.6]}
15... Ba6 {[%clk 0:02:50.4]} 16. Bxg7 {[%clk 0:02:10.6]} 16... Kxg7 {[%clk
0:02:50.2]} 17. Nh4 {[%clk 0:02:10.9]} 17... h6 {[%clk 0:02:50.4]} 18. Kh2
{[%clk 0:02:08.9]} 18... Rad8 {[%clk 0:02:43.1]} 19. f4 {[%clk 0:02:05.4]} 19...
exd4 {[%clk 0:02:30.9]} 20. Qxd4 {[%clk 0:02:04.9]} 20... Nxc2 {[%clk
0:02:29.7]} 21. Qf2 {[%clk 0:02:04.5]} 21... Nxe1 {[%clk 0:02:28.5]} 22. Rxe1
{[%clk 0:02:04.8]} 22... Qe7 {[%clk 0:02:13.3]} 23. g4 {[%clk 0:02:04.1]} 23...
Nd7 {[%clk 0:02:06.2]} 24. Qg3 {[%clk 0:02:02.5]} 24... Nc5 {[%clk 0:02:02.3]}
25. e5 {[%clk 0:02:00]} 25... dxe5 {[%clk 0:01:47.2]} 26. Rxe5 {[%clk
0:02:00.9]} 26... Qd6 {[%clk 0:01:46.8]} 27. Nf3 {[%clk 0:01:57.6]} 27... Nd3
{[%clk 0:01:36]} 28. Ne4 {[%clk 0:01:46.7]} 28... Qc7 {[%clk 0:01:34.8]} 29. g5
{[%clk 0:01:33.6]} 29... h5 {[%clk 0:01:26.4]} 30. Nf6 {[%clk 0:01:24.7]} 30...
Nxe5 {[%clk 0:01:20.9]} 31. Nxe5 {[%clk 0:01:24.5]} 31... Re6 {[%clk 0:01:10.8]}
32. Bf3 {[%clk 0:01:12.6]} 32... Rd2+ {[%clk 0:01:05.9]} 33. Kh1 {[%clk
0:01:11.7]} 33... Qd6 {[%clk 0:00:56]} 34. Bxh5 {[%clk 0:01:07.5]} 34... Qd4
{[%clk 0:00:54.1]} 35. Nf3 {[%clk 0:00:56.1]} 35... Rd1+ {[%clk 0:00:48.7]} 36.
Ng1 {[%clk 0:00:55.8]} 36... Rxg1+ {[%clk 0:00:42.6]} 37. Qxg1 {[%clk
0:00:56.7]} 37... Qxg1+ {[%clk 0:00:42.3]} 38. Kxg1 {[%clk 0:00:57.6]} 38...
gxh5 {[%clk 0:00:42.4]} 39. Kf2 {[%clk 0:00:56.6]} 39... Rxf6 {[%clk 0:00:42.1]}
40. gxf6+ {[%clk 0:00:56.5]} 40... Kxf6 {[%clk 0:00:42.4]} 0-1

[Event "Late-Titled-Tuesday-Blitz-May-14-2024"]
[Site "Chess.com"]
[Date "2024.05.14"]
[Round "6"]
[White "m_ezat"]
[Black "bobo_panda"]
[Result "1-0"]
[WhiteElo "2611"]
[BlackElo "2438"]
[TimeControl "180+1"]
[EndTime "15:05:16 PDT"]
[Termination "m_ezat won by checkmate"]

1. e4 {[%clk 0:03:00.9]} 1... c5 {[%clk 0:02:59.4]} 2. d4 {[%clk 0:02:58.5]}
2... cxd4 {[%clk 0:02:59.2]} 3. c3 {[%clk 0:02:55.6]} 3... dxc3 {[%clk
0:02:49.2]} 4. Nxc3 {[%clk 0:02:54.5]} 4... Nc6 {[%clk 0:02:50.1]} 5. Nf3 {[%clk
0:02:53.7]} 5... g6 {[%clk 0:02:50]} 6. Bc4 {[%clk 0:02:53.9]} 6... Bg7 {[%clk
0:02:49.9]} 7. O-O {[%clk 0:02:54.3]} 7... e6 {[%clk 0:02:50.2]} 8. Bf4 {[%clk
0:02:51]} 8... Nge7 {[%clk 0:02:47.3]} 9. Nb5 {[%clk 0:02:50.8]} 9... e5 {[%clk
0:02:44.3]} 10. Nd6+ {[%clk 0:02:49]} 10... Kf8 {[%clk 0:02:44.6]} 11. Nxf7
{[%clk 0:02:48.7]} 11... Qc7 {[%clk 0:02:43.4]} 12. Nxh8 {[%clk 0:02:46.5]}
12... exf4 {[%clk 0:02:43.3]} 13. Nf7 {[%clk 0:02:45.9]} 13... Na5 {[%clk
0:02:40.4]} 14. Bb3 {[%clk 0:02:41.1]} 14... d5 {[%clk 0:02:32.5]} 15. exd5
{[%clk 0:02:36.3]} 15... Nf5 {[%clk 0:02:29]} 16. d6 {[%clk 0:02:34.3]} 16...
Qd7 {[%clk 0:01:58.7]} 17. N3g5 {[%clk 0:02:32.2]} 17... Nxb3 {[%clk 0:01:53.3]}
18. Qxb3 {[%clk 0:02:31.4]} 18... Bd4 {[%clk 0:01:30.2]} 19. Rfe1 {[%clk
0:02:20.4]} 19... h6 {[%clk 0:01:25.6]} 20. Ne6+ {[%clk 0:01:56]} 20... Kxf7
{[%clk 0:00:58.7]} 21. Nc5+ {[%clk 0:01:28.8]} 21... Kf6 {[%clk 0:00:57.1]} 22.
Nxd7+ {[%clk 0:01:27.8]} 22... Bxd7 {[%clk 0:00:57.4]} 23. Qxb7 {[%clk
0:01:27.4]} 23... Rd8 {[%clk 0:00:58]} 24. Rac1 {[%clk 0:01:15.6]} 24... Be6
{[%clk 0:00:48.9]} 25. Rc6 {[%clk 0:01:04.6]} 25... Bd5 {[%clk 0:00:35.5]} 26.
Qc7 {[%clk 0:00:56.9]} 26... Rf8 {[%clk 0:00:34.9]} 27. Qe7+ {[%clk 0:00:50.3]}
27... Nxe7 {[%clk 0:00:32.6]} 28. dxe7+ {[%clk 0:00:50.1]} 28... Bxc6 {[%clk
0:00:32.8]} 29. exf8=Q+ {[%clk 0:00:50.2]} 29... Kg5 {[%clk 0:00:32.9]} 30. h4+
{[%clk 0:00:45.4]} 30... Kg4 {[%clk 0:00:32.1]} 31. Qc8+ {[%clk 0:00:44.1]}
31... Kxh4 {[%clk 0:00:31.5]} 32. Qxc6 {[%clk 0:00:44.3]} 32... g5 {[%clk
0:00:29.8]} 33. Qxh6+ {[%clk 0:00:43]} 33... Kg4 {[%clk 0:00:29.1]} 34. Qh3#
{[%clk 0:00:43.4]} 1-0

[Event "Late-Titled-Tuesday-Blitz-May-14-2024"]
[Site "Chess.com"]
[Date "2024.05.14"]
[Round "6"]
[White "GlavkonVVS"]
[Black "cthulhuuu"]
[Result "1-0"]
[WhiteElo "2633"]
[BlackElo "2473"]
[TimeControl "180+1"]
[EndTime "15:05:22 PDT"]
[Termination "GlavkonVVS won by resignation"]

1. c4 {[%clk 0:03:00.9]} 1... Nf6 {[%clk 0:02:55]} 2. Nc3 {[%clk 0:03:00.6]}
2... e5 {[%clk 0:02:54.8]} 3. g3 {[%clk 0:03:00.7]} 3... g6 {[%clk 0:02:55]} 4.
Bg2 {[%clk 0:03:01]} 4... Bg7 {[%clk 0:02:55]} 5. Nf3 {[%clk 0:03:01.7]} 5... d6
{[%clk 0:02:55.5]} 6. O-O {[%clk 0:03:01.7]} 6... O-O {[%clk 0:02:56]} 7. d3
{[%clk 0:03:02.4]} 7... c6 {[%clk 0:02:55.5]} 8. Rb1 {[%clk 0:03:01.6]} 8... Re8
{[%clk 0:02:55.8]} 9. b4 {[%clk 0:03:01.7]} 9... d5 {[%clk 0:02:56.2]} 10. e4
{[%clk 0:02:57.2]} 10... dxc4 {[%clk 0:02:38.8]} 11. dxc4 {[%clk 0:02:56.7]}
11... Be6 {[%clk 0:02:39.3]} 12. Qe2 {[%clk 0:02:56.3]} 12... a5 {[%clk
0:02:30.8]} 13. Rd1 {[%clk 0:02:44.3]} 13... Qe7 {[%clk 0:02:30.6]} 14. b5
{[%clk 0:02:34]} 14... Nbd7 {[%clk 0:02:30.3]} 15. bxc6 {[%clk 0:02:30.1]} 15...
bxc6 {[%clk 0:02:31.2]} 16. h3 {[%clk 0:02:21]} 16... Qc5 {[%clk 0:02:20.4]} 17.
Bf1 {[%clk 0:02:18.5]} 17... Rab8 {[%clk 0:02:01.2]} 18. Be3 {[%clk 0:02:18.3]}
18... Qa3 {[%clk 0:02:01.3]} 19. Qc2 {[%clk 0:02:14.5]} 19... Nc5 {[%clk
0:01:43.2]} 20. Nxe5 {[%clk 0:01:58.9]} 20... Rxb1 {[%clk 0:01:28.7]} 21. Nxb1
{[%clk 0:01:51.3]} 21... Qa4 {[%clk 0:01:22.3]} 22. Qxa4 {[%clk 0:01:46.7]}
22... Nxa4 {[%clk 0:01:23.2]} 23. Nxc6 {[%clk 0:01:32.3]} 23... Nxe4 {[%clk
0:01:23.3]} 24. Nxa5 {[%clk 0:01:29.6]} 24... Nb2 {[%clk 0:01:16.9]} 25. Rc1
{[%clk 0:01:26.3]} 25... Ra8 {[%clk 0:01:09.6]} 26. Nb7 {[%clk 0:01:11]} 26...
Rxa2 {[%clk 0:01:07.3]} 27. c5 {[%clk 0:01:10.8]} 27... Bd5 {[%clk 0:00:38.1]}
28. c6 {[%clk 0:01:10.3]} 28... Ra1 {[%clk 0:00:27.6]} 29. c7 {[%clk 0:01:06.1]}
29... Bxb7 {[%clk 0:00:25]} 30. c8=Q+ {[%clk 0:01:05.9]} 30... Bxc8 {[%clk
0:00:23.8]} 31. Rxc8+ {[%clk 0:01:06.4]} 31... Bf8 {[%clk 0:00:16.4]} 32. Bh6
{[%clk 0:01:06.8]} 32... Ra8 {[%clk 0:00:06.6]} 33. Rxa8 {[%clk 0:01:06.6]} 1-0

[Event "Late-Titled-Tuesday-Blitz-May-14-2024"]
[Site "Chess.com"]
[Date "2024.05.14"]
[Round "6"]
[White "Cuchulin"]
[Black "katharinareinecke"]
[Result "0-1"]
[WhiteElo "2195"]
[BlackElo "1910"]
[TimeControl "180+1"]
[EndTime "15:05:35 PDT"]
[Termination "katharinareinecke won by resignation"]

1. d4 {[%clk 0:03:00.9]} 1... c6 {[%clk 0:02:59.7]} 2. Bf4 {[%clk 0:03:00.7]}
2... d5 {[%clk 0:02:59.5]} 3. e3 {[%clk 0:03:01]} 3... Nf6 {[%clk 0:02:59.3]} 4.
Nf3 {[%clk 0:03:01.3]} 4... Bg4 {[%clk 0:02:52.1]} 5. Be2 {[%clk 0:03:00.5]}
5... e6 {[%clk 0:02:51.9]} 6. O-O {[%clk 0:02:58.8]} 6... Bd6 {[%clk 0:02:51.6]}
7. Ne5 {[%clk 0:02:58.7]} 7... Bxe2 {[%clk 0:02:49.4]} 8. Qxe2 {[%clk
0:02:59.6]} 8... O-O {[%clk 0:02:47.9]} 9. Nd2 {[%clk 0:02:58.6]} 9... Qe7
{[%clk 0:02:41.6]} 10. c4 {[%clk 0:02:57.2]} 10... dxc4 {[%clk 0:02:40.1]} 11.
Ndxc4 {[%clk 0:02:56.4]} 11... Bxe5 {[%clk 0:02:34.6]} 12. Bxe5 {[%clk
0:02:52.2]} 12... Rd8 {[%clk 0:02:27.7]} 13. a4 {[%clk 0:02:48.3]} 13... Na6
{[%clk 0:02:23.9]} 14. Na5 {[%clk 0:02:46.4]} 14... Nb4 {[%clk 0:02:13.6]} 15.
Rfc1 {[%clk 0:02:38.3]} 15... Rac8 {[%clk 0:02:05]} 16. Nc4 {[%clk 0:02:22]}
16... b6 {[%clk 0:01:53.3]} 17. Qe1 {[%clk 0:02:00]} 17... b5 {[%clk 0:00:59.7]}
18. Nd6 {[%clk 0:01:51.6]} 18... Rxd6 {[%clk 0:00:56.3]} 19. Qxb4 {[%clk
0:01:41.5]} 19... Rd7 {[%clk 0:00:51.6]} 20. Qxe7 {[%clk 0:01:40.3]} 20... Rxe7
{[%clk 0:00:51.7]} 21. Bxf6 {[%clk 0:01:39.3]} 21... gxf6 {[%clk 0:00:51.2]} 22.
axb5 {[%clk 0:01:39.5]} 22... Rec7 {[%clk 0:00:44.7]} 23. bxc6 {[%clk
0:01:39.3]} 23... Rxc6 {[%clk 0:00:42.8]} 24. Rxc6 {[%clk 0:01:39.1]} 24... Rxc6
{[%clk 0:00:42.5]} 25. g4 {[%clk 0:01:36]} 25... a6 {[%clk 0:00:36.1]} 26. Ra5
{[%clk 0:01:33.1]} 26... Rb6 {[%clk 0:00:35.6]} 27. Kg2 {[%clk 0:01:30.7]} 27...
Rxb2 {[%clk 0:00:31.8]} 28. Rxa6 {[%clk 0:01:29.1]} 28... Kg7 {[%clk 0:00:30.1]}
29. h4 {[%clk 0:01:29.1]} 29... Rd2 {[%clk 0:00:30]} 30. Kg3 {[%clk 0:01:21.1]}
30... Kg6 {[%clk 0:00:28.7]} 31. Ra8 {[%clk 0:01:18.7]} 31... Kg7 {[%clk
0:00:27.9]} 32. f3 {[%clk 0:01:15]} 32... Rd3 {[%clk 0:00:26]} 33. Kf4 {[%clk
0:01:13.7]} 33... Rd2 {[%clk 0:00:26.1]} 34. Rd8 {[%clk 0:01:03.2]} 34... Rh2
{[%clk 0:00:23.8]} 35. h5 {[%clk 0:01:01.8]} 35... Rd2 {[%clk 0:00:23.3]} 36.
Ra8 {[%clk 0:00:54.7]} 36... Rd1 {[%clk 0:00:21.9]} 37. Ra7 {[%clk 0:00:51.8]}
37... Rd2 {[%clk 0:00:21.4]} 38. h6+ {[%clk 0:00:51.2]} 38... Kg6 {[%clk
0:00:20.6]} 39. Rxf7 {[%clk 0:00:51.8]} 39... Kxf7 {[%clk 0:00:20.5]} 0-1

[Event "Late-Titled-Tuesday-Blitz-May-14-2024"]
[Site "Chess.com"]
[Date "2024.05.14"]
[Round "6"]
[White "LiemLe"]
[Black "grzechu96"]
[Result "1-0"]
[WhiteElo "3045"]
[BlackElo "2806"]
[TimeControl "180+1"]
[EndTime "15:05:40 PDT"]
[Termination "LiemLe won on time"]

1. Nf3 {[%clk 0:03:00.9]} 1... d5 {[%clk 0:03:00.1]} 2. e3 {[%clk 0:03:00.8]}
2... Nf6 {[%clk 0:03:00]} 3. c4 {[%clk 0:03:00.9]} 3... c6 {[%clk 0:03:00.5]} 4.
Nc3 {[%clk 0:02:59.9]} 4... e6 {[%clk 0:02:59.7]} 5. b3 {[%clk 0:02:59.2]} 5...
Bd6 {[%clk 0:02:59.8]} 6. Bb2 {[%clk 0:02:59.5]} 6... O-O {[%clk 0:03:00.3]} 7.
Be2 {[%clk 0:02:58.9]} 7... b6 {[%clk 0:02:57.9]} 8. Qc2 {[%clk 0:02:42.3]} 8...
Bb7 {[%clk 0:02:55.6]} 9. g4 {[%clk 0:02:42.6]} 9... Nxg4 {[%clk 0:02:55.9]} 10.
Rg1 {[%clk 0:02:42.8]} 10... f5 {[%clk 0:02:56.3]} 11. h3 {[%clk 0:02:24.3]}
11... Nf6 {[%clk 0:02:55.8]} 12. cxd5 {[%clk 0:02:24.7]} 12... cxd5 {[%clk
0:02:10.4]} 13. Nd4 {[%clk 0:02:18.7]} 13... Qe7 {[%clk 0:01:39.1]} 14. Ncb5
{[%clk 0:02:18.2]} 14... Na6 {[%clk 0:01:39.1]} 15. Nxd6 {[%clk 0:01:46.5]}
15... Qxd6 {[%clk 0:01:17.7]} 16. f4 {[%clk 0:01:31.8]} 16... Rac8 {[%clk
0:01:13.8]} 17. Qd1 {[%clk 0:01:31.6]} 17... Nc5 {[%clk 0:00:34.1]} 18. Rc1
{[%clk 0:01:31.2]} 18... Qe7 {[%clk 0:00:30.9]} 19. Kf1 {[%clk 0:01:23.9]} 19...
Rf7 {[%clk 0:00:10.8]} 20. Nf3 {[%clk 0:01:21.5]} 20... Nfd7 {[%clk 0:00:07.1]}
21. Ng5 {[%clk 0:01:08.5]} 21... Rff8 {[%clk 0:00:06.8]} 22. Qe1 {[%clk
0:00:55]} 22... Nf6 {[%clk 0:00:05.6]} 23. Qh4 {[%clk 0:00:51.9]} 23... h6
{[%clk 0:00:05.5]} 24. Nf3 {[%clk 0:00:49.5]} 24... Kh7 {[%clk 0:00:05.7]} 25.
Ne5 {[%clk 0:00:48.4]} 25... Nce4 {[%clk 0:00:05]} 26. Ng6 {[%clk 0:00:47.1]}
26... Nxd2+ {[%clk 0:00:04]} 27. Ke1 {[%clk 0:00:41.8]} 27... Qb4 {[%clk
0:00:01.6]} 28. Nxf8+ {[%clk 0:00:41.8]} 28... Kg8 {[%clk 0:00:01]} 29. Rxg7+
{[%clk 0:00:40.1]} 29... Kxg7 {[%clk 0:00:01.1]} 30. Qxf6+ {[%clk 0:00:40.4]}
1-0

[Event "Late-Titled-Tuesday-Blitz-May-14-2024"]
[Site "Chess.com"]
[Date "2024.05.14"]
[Round "6"]
[White "Love7Unicorn"]
[Black "NCchamp"]
[Result "1-0"]
[WhiteElo "2507"]
[BlackElo "2313"]
[TimeControl "180+1"]
[EndTime "15:05:41 PDT"]
[Termination "Love7Unicorn won on time"]

1. d4 {[%clk 0:03:00.9]} 1... d5 {[%clk 0:02:59.4]} 2. c4 {[%clk 0:03:01.3]}
2... dxc4 {[%clk 0:02:58.9]} 3. e4 {[%clk 0:03:01.1]} 3... b5 {[%clk 0:02:57.9]}
4. a4 {[%clk 0:03:00.1]} 4... c6 {[%clk 0:02:58.2]} 5. g3 {[%clk 0:02:56.8]}
5... Nf6 {[%clk 0:02:56.1]} 6. Bg2 {[%clk 0:02:57]} 6... e5 {[%clk 0:02:54.9]}
7. d5 {[%clk 0:02:53.8]} 7... Bg4 {[%clk 0:02:26.9]} 8. Ne2 {[%clk 0:02:43.4]}
8... Bb4+ {[%clk 0:02:17.9]} 9. Nbc3 {[%clk 0:02:41.6]} 9... a6 {[%clk 0:02:10]}
10. O-O {[%clk 0:02:35.1]} 10... O-O {[%clk 0:02:07.6]} 11. axb5 {[%clk
0:02:34.9]} 11... Bxc3 {[%clk 0:01:55.3]} 12. bxc3 {[%clk 0:02:33.7]} 12... cxb5
{[%clk 0:01:55.4]} 13. f3 {[%clk 0:02:27.7]} 13... Qb6+ {[%clk 0:01:50.2]} 14.
Kh1 {[%clk 0:02:26.7]} 14... Bh5 {[%clk 0:01:50.8]} 15. g4 {[%clk 0:02:09.7]}
15... Bg6 {[%clk 0:01:50.7]} 16. Ng3 {[%clk 0:02:10.4]} 16... Nbd7 {[%clk
0:01:48.8]} 17. h4 {[%clk 0:02:09.4]} 17... h6 {[%clk 0:01:43.2]} 18. h5 {[%clk
0:02:07.4]} 18... Bh7 {[%clk 0:01:43.1]} 19. g5 {[%clk 0:02:03.9]} 19... hxg5
{[%clk 0:01:44]} 20. Bxg5 {[%clk 0:02:04.4]} 20... a5 {[%clk 0:01:36.4]} 21. h6
{[%clk 0:01:58.9]} 21... b4 {[%clk 0:01:25.1]} 22. Bh3 {[%clk 0:01:41.4]} 22...
b3 {[%clk 0:01:15.8]} 23. Qe2 {[%clk 0:01:24.7]} 23... Rac8 {[%clk 0:00:50.9]}
24. f4 {[%clk 0:01:23.7]} 24... exf4 {[%clk 0:00:49]} 25. Rxf4 {[%clk
0:01:22.7]} 25... Kh8 {[%clk 0:00:46.9]} 26. hxg7+ {[%clk 0:01:03.2]} 26... Kxg7
{[%clk 0:00:46.4]} 27. Bxd7 {[%clk 0:01:02.7]} 27... Nxd7 {[%clk 0:00:40.9]} 28.
Nh5+ {[%clk 0:01:02.3]} 28... Kh8 {[%clk 0:00:41.3]} 29. Nf6 {[%clk 0:00:59.8]}
29... b2 {[%clk 0:00:29.5]} 30. Rb1 {[%clk 0:00:54]} 30... Qd6 {[%clk
0:00:07.5]} 31. Qh5 {[%clk 0:00:44]} 1-0

[Event "Late-Titled-Tuesday-Blitz-May-14-2024"]
[Site "Chess.com"]
[Date "2024.05.14"]
[Round "6"]
[White "maurovargas01"]
[Black "TheBigBadChessDad"]
[Result "0-1"]
[WhiteElo "1933"]
[BlackElo "2279"]
[TimeControl "180+1"]
[EndTime "15:05:42 PDT"]
[Termination "TheBigBadChessDad won on time"]

1. e4 {[%clk 0:03:00.9]} 1... c6 {[%clk 0:02:40.7]} 2. Nc3 {[%clk 0:03:00.4]}
2... d5 {[%clk 0:02:41.3]} 3. d3 {[%clk 0:03:01.3]} 3... g6 {[%clk 0:02:41.1]}
4. e5 {[%clk 0:03:02.2]} 4... Bg7 {[%clk 0:02:36.3]} 5. f4 {[%clk 0:03:03.1]}
5... h5 {[%clk 0:02:35]} 6. Nf3 {[%clk 0:03:01.7]} 6... Bg4 {[%clk 0:02:32.6]}
7. h3 {[%clk 0:03:00.7]} 7... Bxf3 {[%clk 0:02:32.3]} 8. Qxf3 {[%clk 0:03:00.6]}
8... e6 {[%clk 0:02:30.7]} 9. d4 {[%clk 0:03:00.5]} 9... h4 {[%clk 0:02:30.1]}
10. Be3 {[%clk 0:02:58.3]} 10... Ne7 {[%clk 0:02:29.6]} 11. Bf2 {[%clk 0:02:57]}
11... Nf5 {[%clk 0:02:29.6]} 12. O-O-O {[%clk 0:02:52.7]} 12... a6 {[%clk
0:02:29]} 13. Ne2 {[%clk 0:02:40.8]} 13... Nd7 {[%clk 0:02:24.9]} 14. g4 {[%clk
0:02:39.7]} 14... hxg3 {[%clk 0:02:24.2]} 15. Nxg3 {[%clk 0:02:37.6]} 15... Nxg3
{[%clk 0:02:19.8]} 16. Bxg3 {[%clk 0:02:31.7]} 16... Qa5 {[%clk 0:02:19.3]} 17.
Kb1 {[%clk 0:02:27.4]} 17... c5 {[%clk 0:02:18.6]} 18. dxc5 {[%clk 0:02:26.4]}
18... Nxc5 {[%clk 0:02:12.3]} 19. Bf2 {[%clk 0:02:23.3]} 19... Rc8 {[%clk
0:02:06.1]} 20. Bxc5 {[%clk 0:02:20.1]} 20... Qxc5 {[%clk 0:01:55.9]} 21. Qb3
{[%clk 0:02:17.3]} 21... b5 {[%clk 0:01:53.2]} 22. Bd3 {[%clk 0:02:15.4]} 22...
Rh4 {[%clk 0:01:49.3]} 23. Rdf1 {[%clk 0:02:09.6]} 23... Bh6 {[%clk 0:01:48.5]}
24. f5 {[%clk 0:01:58.5]} 24... gxf5 {[%clk 0:01:45.8]} 25. Rfg1 {[%clk
0:01:53.5]} 25... Ke7 {[%clk 0:01:44.1]} 26. c3 {[%clk 0:01:17.7]} 26... Bf4
{[%clk 0:01:34]} 27. Re1 {[%clk 0:00:59.1]} 27... Rch8 {[%clk 0:01:32.6]} 28.
Qc2 {[%clk 0:00:49.9]} 28... Rxh3 {[%clk 0:01:18.2]} 29. Rxh3 {[%clk 0:00:48.6]}
29... Rxh3 {[%clk 0:01:19.1]} 30. Bxf5 {[%clk 0:00:48.3]} 30... exf5 {[%clk
0:01:11.1]} 31. Qxf5 {[%clk 0:00:47.9]} 31... Qf2 {[%clk 0:01:11.7]} 32. Qf6+
{[%clk 0:00:23.8]} 32... Ke8 {[%clk 0:01:11.9]} 33. Rd1 {[%clk 0:00:14.3]} 33...
Rh2 {[%clk 0:01:07.2]} 34. Qc6+ {[%clk 0:00:10.6]} 34... Kf8 {[%clk 0:01:07.4]}
35. Qd6+ {[%clk 0:00:08.2]} 35... Kg8 {[%clk 0:01:02.4]} 36. Qd8+ {[%clk
0:00:05.9]} 36... Kh7 {[%clk 0:00:59.3]} 0-1